{"text_format":"3","workbook":"xlsx","n_sheets":4,"sheets":["Kontrolne tačke","Plan","Osnovni podaci","Podaci grafikona"],"not_rendered":{"charts":1,"defined_names":2},"read":"whole","date_system":"1900"}

{"sheet":"Kontrolne tačke","index":0,"n_rows":27,"n_cols":5,"rows_kept":27}
["Napravite plan tako što ćete na ovaj radni list uneti važne kontrolne tačke i aktivnosti.\nNaslov ovog radnog lista nalazi se u ćeliji C1. \nInformacije o tome kako se koristi ovaj radni list, uključujući uputstva za čitače ekrana, nalaze se na radnom listu „Osnovni podaci“.\nNastavite da se krećete niz kolonu A da biste dobili dodatna uputstva.",null,"Kontrolne tačke"]
["Naslovi tabela nalaze se u ćelijama od C2 do E2. Koristite opcije stavke „Sortiraj i filtriraj“ da biste sortirali ili pronašli određene unose.\nUnesite kontrolne tačke sa datumima i postavite poziciju za pravljenje grafikona kontrolne tačke u tabelu počevši od ćelije C3.\nKolona B je sakrivena. Grafikon generisan od ovih podataka koristi traku za pomeranje za prikaz delova vremenske ose. Kolona B doprinosi određivanju za koje se kontrolne tačke pravi grafikon kada je traka za pomeranje povećana. \nUpozorenje: Brisanje ili izmena sadržaja kolone B može da poremeti integritet pravljenja grafikona koji je ugrađen u ovu radnu svesku.","Br.","Pozicija","Datum","Kontrolna tačka"]
["Pozicija za pravljenje grafikona datum i kontrolna tačka unesite u ćeliju C1. Unesite pozitivan broj između 1 i 3 da biste napravili grafikon kontrolna tačka iznad vremenske ose. Unesite negativan broj između -1 i -3 da biste napravili grafikon kontrolna tačka ispod vremenske ose.\nDatum i kontrolna tačka ili aktivnost unesite u kolone D i E u okviru tabele.\nPonavljajte ovaj obrazac za svaki novi red u tabeli sa desne strane.\nUzorak podataka dat je u redovima od 3 od 26. Izmenite ili izbrišite uzorak sadržaja da biste napravili sopstveni plan.\nIdite na ćeliju A27 da biste dobili sledeće uputstvo.",{"$f":"ROW($A1)","v":1},1,{"$f":"TODAY()","v":"2018-06-29"},"Početak"]
[null,{"$f":"ROW($A2)","v":2},-2,{"$f":"D3+10","v":"2018-07-09"},"Analiza problema\naktivnost 1"]
[null,3,1,{"$f":"D4+20","v":"2018-07-29"},"Razvoj poslovnog predmeta\naktivnost 1\naktivnost 2"]
[null,4,-1,{"$f":"D5+30","v":"2018-08-28"},"Redigovanje prezentacije"]
[null,5,{"v":-0.5,"d":"-1"},{"$f":"D6+40","v":"2018-10-07"},"Početak rada direktora\naktivnost 1\naktivnost 2"]
[null,6,2,{"$f":"D7+50","v":"2018-11-26"},"Usklađivanje direktora\naktivnost 1\naktivnost 2\naktivnost 3"]
[null,7,{"v":0.5,"d":"1"},{"$f":"D8+60","v":"2019-01-25"},"Kupovina udela zainteresovanih"]
[null,8,-1,{"$f":"D9+70","v":"2019-04-05"},"Izbor resursa"]
[null,9,{"v":0.5,"d":"1"},{"$f":"D10+80","v":"2019-06-24"},"Sastavljanje tima\naktivnost 1 "]
[null,10,-2,{"$f":"D11+90","v":"2019-09-22"},"Početak rada tima\naktivnost 1 \naktivnost 2\naktivnost 3\naktivnost 4"]
[null,11,3,{"$f":"D12+100","v":"2019-12-31"},"Početak prikupljanja podataka"]
[null,12,-1,{"$f":"D13+90","v":"2020-03-30"},"Analiza podataka"]
[null,13,1,{"$f":"D14+80","v":"2020-06-18"},"Dizajn"]
[null,14,1,{"$f":"D15+70","v":"2020-08-27"},"Dokaz koncepta"]
[null,15,-3,{"$f":"D16+60","v":"2020-10-26"},"Testiranje i analiza"]
[null,16,-2,{"$f":"D17+50","v":"2020-12-15"},"Ponovno dizajniranje"]
[null,17,2,{"$f":"D18+40","v":"2021-01-24"},"Ponovni razvoj"]
[null,18,-1,{"$f":"D19+30","v":"2021-02-23"},"Testiranje i analiza"]
[null,19,1,{"$f":"D20+20","v":"2021-03-15"},"Ponovno dizajniranje"]
[null,20,-3,{"$f":"D21+10","v":"2021-03-25"},"Ponovni razvoj"]
[null,21,2,{"$f":"D22+20","v":"2021-04-14"},"Završno testiranje"]
[null,22,1,{"$f":"D23+30","v":"2021-05-14"},"Beta testiranje"]
[null,23,-3,{"$f":"D24+40","v":"2021-06-23"},"Pregled"]
[null,24,-2,{"$f":"D25+50","v":"2021-08-12"},"Izdavanje za marketing"]
["Da biste dodali još redova u tabelu „Kontrolne tačke plana“, samo umetnite novi red iznad ovog.\nNe postoje dodatna uputstva na ovom radnom listu.",null,"Da biste dodali još kontrolnih tačaka, umetnite nove redove iznad ove linije."]

{"sheet":"Plan","index":1,"n_rows":3,"n_cols":4,"rows_kept":3}
["Grafikon koji prikazuje kontrolne tačke sa radnog lista „Kontrolne tačke“ nalazi se na ovom radnom listu. \nGodine su navedene u ćelijama B2, C2 i D2 i na njih je primenjen stil „Zaglavlje 3“.\nIstovremeno se prave grafikoni za 10 kontrolnih tačaka. \nKoristite traku za pomeranje u ćelijama od B4 do D4 da biste se kretali po planu.\nGodine vremenske ose nalaze se u ćelijama od B3 do D3.\nNe postoje dodatna uputstva na ovom radnom listu."]
[]
[null,{"$f":"'Podaci grafikona'!B20","v":2018},{"$f":"'Podaci grafikona'!B21","v":""},{"$f":"'Podaci grafikona'!B22","v":2019}]

{"sheet":"Osnovni podaci","index":2,"n_rows":5,"n_cols":1,"rows_kept":5}
["Osnovni podaci o ovoj radnoj svesci"]
["Vodič za čitače ekrana"]
["U ovoj radnoj svesci postoje 4 radna lista. \n\nKontrolne tačke\nPlan\nOsnovni podaci\nPodaci grafikona (skriveni)\n\nUputstva za svaki radni list nalaze se u koloni A, počevši od ćelije A1 svakog radnog lista. Napisana su pomoću skrivenog teksta. Svaki korak vas vodi kroz informacije u tom redu. Svaki sledeći korak nastavlja se u ćelijama A2, A3 i tako dalje, osim ako je izričito drugačije navedeno. Na primer, u tekstu uputstva može da piše „idite na ćeliju A6“ da biste videli sledeći korak. \n\nSkriveni tekst se neće odštampati.\n\nDa biste uklonili ova uputstva sa bilo kog radnog lista, samo izbrišite kolonu A.\n"]
["Ovaj plan koristi pozicije za pravljenje grafikona kontrolnih tačaka i aktivnosti. Pozicije možete koristiti da biste dodali stepen važnosti kontrolnoj tački ili aktivnosti. Jednostavno prilagodite vrednosti u skladu sa željenim stepenom važnosti. Na primer, kontrolna tačka/aktivnost 3 može da ima veći stepen važnosti od kontrolne tačke/aktivnosti 2. Da biste to prikazali na grafikonu, jednostavno podesite da vrednost pozicije bude veća za kontrolnu tačku/aktivnost 3 nego za kontrolnu tačku/aktivnost 2.  \n"]
["Ovo je poslednje uputstvo u ovom radnom listu."]

{"sheet":"Podaci grafikona","index":3,"n_rows":26,"n_cols":4,"rows_kept":26,"hidden":true}
["Podaci za pravljenje dinamičkih grafikona nalaze se na ovom radnom listu. Nemojte da izbrišete ovaj radni list!\nBrisanje ovog radnog lista može da ugrozi dinamičke mogućnosti radne sveske.","Nemojte da izbrišete ovaj radni list!"]
["Naslov za tabelu nalazi se u ćeliji B2.","Sadržaj dinamičkog grafikona"]
["Naslovi tabele nalaze se u ćelijama od B3 do D3. \nOva tabela se automatski ažurira na osnovu sadržaja unetog na radnom listu „Kontrolne tačke“.\nUpozorenje: Izmena ili brisanje sadržaja u ovoj tabeli može da ugrozi mogućnost dinamičkog ažuriranja grafikona „Plan“ na radnom listu „Plan“.\nIdite na ćeliju A15 da biste dobili sledeće uputstvo.","Datum","Događaji","Pozicija"]
[null,{"$f":"IFERROR(IF(LEN('Kontrolne tačke'!D3)=0,\"\",INDEX(KontrolneTačkePlana[],'Kontrolne tačke'!$B3+$B$17,3)),\"\")","v":"2018-06-29"},{"$f":"IFERROR(IF(LEN('Kontrolne tačke'!E3)=0,\"\",INDEX(KontrolneTačkePlana[],'Kontrolne tačke'!$B3+$B$17,4)),\"\")","v":"Početak"},{"$f":"IFERROR(INDEX(KontrolneTačkePlana[],'Kontrolne tačke'!$B3+$B$17,2),\"\")","v":1}]
[null,{"$f":"IFERROR(IF(LEN('Kontrolne tačke'!D4)=0,\"\",INDEX(KontrolneTačkePlana[],'Kontrolne tačke'!$B4+$B$17,3)),\"\")","v":"2018-07-09"},{"$f":"IFERROR(IF(LEN('Kontrolne tačke'!E4)=0,\"\",INDEX(KontrolneTačkePlana[],'Kontrolne tačke'!$B4+$B$17,4)),\"\")","v":"Analiza problema\naktivnost 1"},{"$f":"IFERROR(INDEX(KontrolneTačkePlana[],'Kontrolne tačke'!$B4+$B$17,2),\"\")","v":-2}]
[null,{"$f":"IFERROR(IF(LEN('Kontrolne tačke'!D5)=0,\"\",INDEX(KontrolneTačkePlana[],'Kontrolne tačke'!$B5+$B$17,3)),\"\")","v":"2018-07-29"},{"$f":"IFERROR(IF(LEN('Kontrolne tačke'!E5)=0,\"\",INDEX(KontrolneTačkePlana[],'Kontrolne tačke'!$B5+$B$17,4)),\"\")","v":"Razvoj poslovnog predmeta\naktivnost 1\naktivnost 2"},{"$f":"IFERROR(INDEX(KontrolneTačkePlana[],'Kontrolne tačke'!$B5+$B$17,2),\"\")","v":1}]
[null,{"$f":"IFERROR(IF(LEN('Kontrolne tačke'!D6)=0,\"\",INDEX(KontrolneTačkePlana[],'Kontrolne tačke'!$B6+$B$17,3)),\"\")","v":"2018-08-28"},{"$f":"IFERROR(IF(LEN('Kontrolne tačke'!E6)=0,\"\",INDEX(KontrolneTačkePlana[],'Kontrolne tačke'!$B6+$B$17,4)),\"\")","v":"Redigovanje prezentacije"},{"$f":"IFERROR(INDEX(KontrolneTačkePlana[],'Kontrolne tačke'!$B6+$B$17,2),\"\")","v":-1}]
[null,{"$f":"IFERROR(IF(LEN('Kontrolne tačke'!D7)=0,\"\",INDEX(KontrolneTačkePlana[],'Kontrolne tačke'!$B7+$B$17,3)),\"\")","v":"2018-10-07"},{"$f":"IFERROR(IF(LEN('Kontrolne tačke'!E7)=0,\"\",INDEX(KontrolneTačkePlana[],'Kontrolne tačke'!$B7+$B$17,4)),\"\")","v":"Početak rada direktora\naktivnost 1\naktivnost 2"},{"$f":"IFERROR(INDEX(KontrolneTačkePlana[],'Kontrolne tačke'!$B7+$B$17,2),\"\")","v":-0.5}]
[null,{"$f":"IFERROR(IF(LEN('Kontrolne tačke'!D8)=0,\"\",INDEX(KontrolneTačkePlana[],'Kontrolne tačke'!$B8+$B$17,3)),\"\")","v":"2018-11-26"},{"$f":"IFERROR(IF(LEN('Kontrolne tačke'!E8)=0,\"\",INDEX(KontrolneTačkePlana[],'Kontrolne tačke'!$B8+$B$17,4)),\"\")","v":"Usklađivanje direktora\naktivnost 1\naktivnost 2\naktivnost 3"},{"$f":"IFERROR(INDEX(KontrolneTačkePlana[],'Kontrolne tačke'!$B8+$B$17,2),\"\")","v":2}]
[null,{"$f":"IFERROR(IF(LEN('Kontrolne tačke'!D9)=0,\"\",INDEX(KontrolneTačkePlana[],'Kontrolne tačke'!$B9+$B$17,3)),\"\")","v":"2019-01-25"},{"$f":"IFERROR(IF(LEN('Kontrolne tačke'!E9)=0,\"\",INDEX(KontrolneTačkePlana[],'Kontrolne tačke'!$B9+$B$17,4)),\"\")","v":"Kupovina udela zainteresovanih"},{"$f":"IFERROR(INDEX(KontrolneTačkePlana[],'Kontrolne tačke'!$B9+$B$17,2),\"\")","v":0.5}]
[null,{"$f":"IFERROR(IF(LEN('Kontrolne tačke'!D10)=0,\"\",INDEX(KontrolneTačkePlana[],'Kontrolne tačke'!$B10+$B$17,3)),\"\")","v":"2019-04-05"},{"$f":"IFERROR(IF(LEN('Kontrolne tačke'!E10)=0,\"\",INDEX(KontrolneTačkePlana[],'Kontrolne tačke'!$B10+$B$17,4)),\"\")","v":"Izbor resursa"},{"$f":"IFERROR(INDEX(KontrolneTačkePlana[],'Kontrolne tačke'!$B10+$B$17,2),\"\")","v":-1}]
[null,{"$f":"IFERROR(IF(LEN('Kontrolne tačke'!D11)=0,\"\",INDEX(KontrolneTačkePlana[],'Kontrolne tačke'!$B11+$B$17,3)),\"\")","v":"2019-06-24"},{"$f":"IFERROR(IF(LEN('Kontrolne tačke'!E11)=0,\"\",INDEX(KontrolneTačkePlana[],'Kontrolne tačke'!$B11+$B$17,4)),\"\")","v":"Sastavljanje tima\naktivnost 1 "},{"$f":"IFERROR(INDEX(KontrolneTačkePlana[],'Kontrolne tačke'!$B11+$B$17,2),\"\")","v":0.5}]
[null,{"$f":"IFERROR(IF(LEN('Kontrolne tačke'!D12)=0,\"\",INDEX(KontrolneTačkePlana[],'Kontrolne tačke'!$B12+$B$17,3)),\"\")","v":"2019-09-22"},{"$f":"IFERROR(IF(LEN('Kontrolne tačke'!E12)=0,\"\",INDEX(KontrolneTačkePlana[],'Kontrolne tačke'!$B12+$B$17,4)),\"\")","v":"Početak rada tima\naktivnost 1 \naktivnost 2\naktivnost 3\naktivnost 4"},{"$f":"IFERROR(INDEX(KontrolneTačkePlana[],'Kontrolne tačke'!$B12+$B$17,2),\"\")","v":-2}]
[]
["Mogućnost pomeranja u planu funkcioniše uz pomoć inkrementalne vrednosti. Naslov za ovu mogućnost nalazi se u ćeliji B15.\nTabela sa zaglavljem i jednom vrednošću nalazi se u ćelijama B16 i B17.\nIdite na ćeliju A19 da biste dobili sledeće uputstvo.","Mogućnost pomeranja"]
[null,"Povećanje reda"]
[null,0]
[]
["Grafikon „Plan“ prikazuje godine za vremensku osu. Kako bi se to uradilo, godine moraju da se uzmu sa liste „Kontrolna tačka“. \nNaslov ovog odeljka je „Godina“ u ćeliji B19. \nVrednosti godina automatski se generišu u ćelijama od C20 do C22.\nUpozorenje: Brisanje ili izmena ovih godina može da promeni tačnost pravljenja grafikona za grafikon „Plan“.\nIdite na ćeliju A24 da biste dobili sledeće uputstvo.","Godina"]
[null,{"$f":"IFERROR(YEAR(B4),\"\")","v":2018},"<-- godina početne pozicije plana"]
[null,{"$f":"IFERROR(IF(YEAR($B$9)=$B$20,\"\",YEAR($B$9)),\"\")","v":""},"<-- godina srednjeg perioda plana; imajte u vidu da ovo može da bude prazno ako je godina ista kao za početnu poziciju plana"]
[null,{"$f":"IFERROR(IF(YEAR($B$13)=$B$20,\"\",YEAR($B$13)),\"\")","v":2019},"<-- godina poslednjeg perioda plana; imajte u vidu da ovo može da bude prazno ako je godina ista kao za početnu poziciju plana"]
[]
["Prstenasti označivači na grafikonu „Plan“ sadrže datume iz sadržaja dinamičkog grafikona na ovom radnom listu. Datumi su „Prvi datum“ u ćeliji C24, „Središnji datum“ u ćeliji C25 i „Poslednji datum“ u ćeliji C26.\nNe postoje dodatna uputstva na ovom radnom listu.","Prvi datum",{"$f":"B4","v":"2018-06-29"}]
[null,"Središnji datum",{"$f":"B9","v":"2018-11-26"}]
[null,"Poslednji datum",{"$f":"B13","v":"2019-09-22"}]